[Event "Titled Tuesday Blitz July 4 Early 2023"]
[White "Bauman_Guy"]
[Black "Trifan, Andrei Ioan"]
[BlackFideId "12967068"]
[WhiteElo "2719"]
[BlackElo "2543"]
[Result "1-0"]
[Round "7"]
[TimeControl "180+2"]
[Date "2023.07.04"]
[WhiteClock "0:00:16"]
[BlackClock "0:00:00"]
[Board "49"]

1. e4 {[%clk 0:03:00]}  e5 {[%clk 0:02:59]} 2. Nf3 {[%clk 0:03:01]}  Nc6 {[%clk 0:02:59]} 3. Bb5 {[%clk 0:03:01]}  a6 {[%clk 0:02:59]} 4. Ba4 {[%clk 0:03:02]}  Nf6 {[%clk 0:03:00]} 5. O-O {[%clk 0:03:02]}  Be7 {[%clk 0:03:00]} 6. d3 {[%clk 0:03:03]}  b5 {[%clk 0:03:00]} 7. Bb3 {[%clk 0:03:03]}  d6 {[%clk 0:02:59]} 8. a4 {[%clk 0:03:03]}  b4 {[%clk 0:02:47]} 9. a5 {[%clk 0:03:03]}  O-O {[%clk 0:02:44]} 10. Nbd2 {[%clk 0:03:03]}  h6 {[%clk 0:02:41]} 11. Nc4 {[%clk 0:03:03]}  Be6 {[%clk 0:02:35]} 12. Be3 {[%clk 0:03:02]}  Nd7 {[%clk 0:02:32]} 13. Ba4 {[%clk 0:02:58]}  Na7 {[%clk 0:02:23]} 14. Nfd2 {[%clk 0:02:58]}  c5 {[%clk 0:02:22]} 15. f4 {[%clk 0:02:50]}  exf4 {[%clk 0:02:18]} 16. Bxf4 {[%clk 0:02:50]}  Qc7 {[%clk 0:02:12]} 17. Qf3 {[%clk 0:02:41]}  Ne5 {[%clk 0:01:58]} 18. Bxe5 {[%clk 0:02:30]}  dxe5 {[%clk 0:01:59]} 19. Nb6 {[%clk 0:02:29]}  Rad8 {[%clk 0:01:56]} 20. Bb3 {[%clk 0:02:29]}  Nc6 {[%clk 0:01:51]} 21. Bxe6 {[%clk 0:02:20]}  fxe6 {[%clk 0:01:52]} 22. Qg4 {[%clk 0:02:21]}  Nd4 {[%clk 0:01:08]} 23. c3 {[%clk 0:02:19]}  bxc3 {[%clk 0:01:04]} 24. bxc3 {[%clk 0:02:19]}  h5 {[%clk 0:01:03]} 25. Qxh5 {[%clk 0:02:11]}  Nb5 {[%clk 0:01:02]} 26. Qg6 {[%clk 0:02:02]}  Rf6 {[%clk 0:00:51]} 27. Qg4 {[%clk 0:01:57]}  Qc6 {[%clk 0:00:48]} 28. c4 {[%clk 0:01:46]}  Nd4 {[%clk 0:00:45]} 29. Rxf6 {[%clk 0:01:46]}  Bxf6 {[%clk 0:00:45]} 30. Rf1 {[%clk 0:01:46]}  Rf8 {[%clk 0:00:46]} 31. h4 {[%clk 0:01:41]}  Qe8 {[%clk 0:00:45]} 32. h5 {[%clk 0:01:38]}  Kh7 {[%clk 0:00:38]} 33. Nf3 {[%clk 0:01:37]}  Nxf3+ {[%clk 0:00:34]} 34. Rxf3 {[%clk 0:01:36]}  Rh8 {[%clk 0:00:30]} 35. h6 {[%clk 0:01:30]}  Qg6 {[%clk 0:00:30]} 36. Qxg6+ {[%clk 0:01:24]}  Kxg6 {[%clk 0:00:31]} 37. Nd7 {[%clk 0:01:13]}  Rxh6 {[%clk 0:00:22]} 38. Nxc5 {[%clk 0:01:11]}  Rh8 {[%clk 0:00:22]} 39. Nxe6 {[%clk 0:01:06]}  Rb8 {[%clk 0:00:21]} 40. c5 {[%clk 0:00:57]}  Rb1+ {[%clk 0:00:16]} 41. Kh2 {[%clk 0:00:56]}  Rc1 {[%clk 0:00:14]} 42. Rf5 {[%clk 0:00:47]}  Kf7 {[%clk 0:00:14]} 43. Ng5+ {[%clk 0:00:43]}  Ke7 {[%clk 0:00:14]} 44. Nf3 {[%clk 0:00:43]}  Ke6 {[%clk 0:00:14]} 45. d4 {[%clk 0:00:35]}  exd4 {[%clk 0:00:14]} 46. Rd5 {[%clk 0:00:35]}  d3 {[%clk 0:00:13]} 47. Kg3 {[%clk 0:00:34]}  Rc3 {[%clk 0:00:12]} 48. Kf4 {[%clk 0:00:34]}  Rc2 {[%clk 0:00:12]} 49. g4 {[%clk 0:00:34]}  Be7 {[%clk 0:00:11]} 50. Nd4+ {[%clk 0:00:33]}  Kf7 {[%clk 0:00:10]} 51. c6 {[%clk 0:00:31]}  Rc1 {[%clk 0:00:07]} 52. Nf5 {[%clk 0:00:29]}  Rxc6 {[%clk 0:00:06]} 53. Rd7 {[%clk 0:00:29]}  Re6 {[%clk 0:00:06]} 54. Rxd3 {[%clk 0:00:22]}  Bb4 {[%clk 0:00:07]} 55. Rd7+ {[%clk 0:00:21]}  Kf8 {[%clk 0:00:06]} 56. Nxg7 {[%clk 0:00:18]}  Bd2+ {[%clk 0:00:06]} 57. Kf5 {[%clk 0:00:15]}  Rc6 {[%clk 0:00:05]} 58. Ne6+ {[%clk 0:00:15]}  Ke8 {[%clk 0:00:05]} 59. e5 {[%clk 0:00:15]}  Bxa5 {[%clk 0:00:04]} 60. Ra7 {[%clk 0:00:15]}  Bc3 {[%clk 0:00:03]} 61. g5 {[%clk 0:00:15]}  a5 {[%clk 0:00:02]} 62. g6 {[%clk 0:00:16]}  Rxe6 {[%clk 0:00:01]} 63. Kxe6 {[%clk 0:00:16]}  Kf8 {[%clk 0:00:02]} 64. Kf6 {[%clk 0:00:16]}  Bxe5+ {[%clk 0:00:01]} 65. Kxe5 {[%clk 0:00:16]}  a4 {[%clk 0:00:00]} 66. Kf6 {[%clk 0:00:16]} 1-0


[Site "https://www.chess.com"]

[Event "Titled Tuesday Blitz July 4 Early 2023"]
[White "Yeritsyan, Hayk"]
[Black "Klekowski, Maciej"]
[WhiteFideId "13307320"]
[BlackFideId "1132717"]
[WhiteElo "2498"]
[BlackElo "2709"]
[Result "0-1"]
[Round "7"]
[TimeControl "180+2"]
[Date "2023.07.04"]
[WhiteClock "0:00:03"]
[BlackClock "0:00:12"]
[Board "51"]

1. d4 {[%clk 0:03:00]}  Nf6 {[%clk 0:02:59]} 2. Nf3 {[%clk 0:02:59]}  d6 {[%clk 0:02:59]} 3. Bf4 {[%clk 0:02:57]}  Nbd7 {[%clk 0:02:58]} 4. h3 {[%clk 0:02:57]}  g6 {[%clk 0:02:56]} 5. e3 {[%clk 0:02:57]}  Bg7 {[%clk 0:02:57]} 6. c3 {[%clk 0:02:56]}  O-O {[%clk 0:02:57]} 7. Be2 {[%clk 0:02:56]}  Qe8 {[%clk 0:02:55]} 8. O-O {[%clk 0:02:56]}  e5 {[%clk 0:02:56]} 9. Bh2 {[%clk 0:02:56]}  Qe7 {[%clk 0:02:56]} 10. Na3 {[%clk 0:02:56]}  Rd8 {[%clk 0:02:40]} 11. Nc4 {[%clk 0:02:56]}  e4 {[%clk 0:02:31]} 12. Nfd2 {[%clk 0:02:55]}  Nf8 {[%clk 0:02:32]} 13. Rc1 {[%clk 0:02:55]}  h5 {[%clk 0:02:31]} 14. b4 {[%clk 0:02:55]}  Bf5 {[%clk 0:02:26]} 15. a4 {[%clk 0:02:54]}  N8h7 {[%clk 0:02:21]} 16. Na5 {[%clk 0:02:54]}  Rab8 {[%clk 0:02:15]} 17. c4 {[%clk 0:02:53]}  Ng5 {[%clk 0:02:10]} 18. Re1 {[%clk 0:02:51]}  Qd7 {[%clk 0:02:05]} 19. Bf1 {[%clk 0:02:48]}  b6 {[%clk 0:02:01]} 20. Nab3 {[%clk 0:02:45]}  Qxa4 {[%clk 0:02:01]} 21. b5 {[%clk 0:02:23]}  a5 {[%clk 0:01:58]} 22. bxa6 {[%clk 0:02:21]}  Qxa6 {[%clk 0:01:48]} 23. c5 {[%clk 0:02:20]}  b5 {[%clk 0:01:46]} 24. cxd6 {[%clk 0:02:17]}  cxd6 {[%clk 0:01:47]} 25. Ra1 {[%clk 0:02:09]}  Qb6 {[%clk 0:01:46]} 26. Qc2 {[%clk 0:02:04]}  Nd5 {[%clk 0:01:38]} 27. Rec1 {[%clk 0:01:55]}  Rdc8 {[%clk 0:01:35]} 28. Qb2 {[%clk 0:01:50]}  Ne6 {[%clk 0:01:30]} 29. Na5 {[%clk 0:01:31]}  Nxd4 {[%clk 0:01:23]} 30. exd4 {[%clk 0:01:23]}  Bxd4 {[%clk 0:01:23]} 31. Qb3 {[%clk 0:01:18]}  Rxc1 {[%clk 0:01:13]} 32. Rxc1 {[%clk 0:01:10]}  Qxa5 {[%clk 0:01:13]} 33. Nc4 {[%clk 0:00:57]}  Qa4 {[%clk 0:00:24]} 34. Qxa4 {[%clk 0:00:38]}  bxa4 {[%clk 0:00:25]} 35. Nxd6 {[%clk 0:00:38]}  Rb2 {[%clk 0:00:24]} 36. Nxf5 {[%clk 0:00:32]}  gxf5 {[%clk 0:00:25]} 37. Bc4 {[%clk 0:00:28]}  Bxf2+ {[%clk 0:00:24]} 38. Kh1 {[%clk 0:00:28]}  Ne3 {[%clk 0:00:24]} 39. Bb5 {[%clk 0:00:18]}  a3 {[%clk 0:00:23]} 40. Be5 {[%clk 0:00:18]}  Rc2 {[%clk 0:00:22]} 41. Ra1 {[%clk 0:00:15]}  a2 {[%clk 0:00:18]} 42. Ba4 {[%clk 0:00:15]}  Re2 {[%clk 0:00:12]} 43. Bb3 {[%clk 0:00:14]}  Re1+ {[%clk 0:00:09]} 44. Rxe1 {[%clk 0:00:14]}  Bxe1 {[%clk 0:00:10]} 45. Bxa2 {[%clk 0:00:14]}  Bf2 {[%clk 0:00:10]} 46. Bb1 {[%clk 0:00:13]}  Kh7 {[%clk 0:00:10]} 47. Bf4 {[%clk 0:00:11]}  h4 {[%clk 0:00:09]} 48. g4 {[%clk 0:00:09]}  hxg3 {[%clk 0:00:09]} 49. Bxe3 {[%clk 0:00:04]}  Bxe3 {[%clk 0:00:10]} 50. Kg2 {[%clk 0:00:04]}  Bf2 {[%clk 0:00:10]} 51. h4 {[%clk 0:00:03]}  Kg6 {[%clk 0:00:11]} 52. Ba2 {[%clk 0:00:03]}  f4 {[%clk 0:00:10]} 53. Bb1 {[%clk 0:00:03]}  f5 {[%clk 0:00:09]} 54. Ba2 {[%clk 0:00:02]}  Kh5 {[%clk 0:00:09]} 55. Be6 {[%clk 0:00:03]}  Kg4 {[%clk 0:00:09]} 56. h5 {[%clk 0:00:04]}  f3+ {[%clk 0:00:09]} 57. Kf1 {[%clk 0:00:04]}  Be3 {[%clk 0:00:10]} 58. h6 {[%clk 0:00:03]}  g2+ {[%clk 0:00:11]} 59. Ke1 {[%clk 0:00:03]}  g1=Q# {[%clk 0:00:12]} 0-1


[Site "https://www.chess.com"]

[Event "Titled Tuesday Blitz July 4 Early 2023"]
[White "Eynullayev, Atilla"]
[Black "Suyarov, Mukhammadzokhid"]
[WhiteFideId "13413570"]
[BlackFideId "14210495"]
[WhiteElo "2493"]
[BlackElo "2708"]
[Result "0-1"]
[Round "7"]
[TimeControl "180+2"]
[Date "2023.07.04"]
[WhiteClock "0:00:01"]
[BlackClock "0:02:09"]
[Board "52"]

1. e4 {[%clk 0:03:00]}  e6 {[%clk 0:02:59]} 2. d3 {[%clk 0:02:58]}  d5 {[%clk 0:02:59]} 3. Nd2 {[%clk 0:02:58]}  c5 {[%clk 0:02:59]} 4. Ngf3 {[%clk 0:02:57]}  Nc6 {[%clk 0:02:59]} 5. g3 {[%clk 0:02:58]}  Nf6 {[%clk 0:02:59]} 6. Bg2 {[%clk 0:02:58]}  Be7 {[%clk 0:02:59]} 7. O-O {[%clk 0:02:59]}  O-O {[%clk 0:03:00]} 8. Re1 {[%clk 0:02:59]}  b5 {[%clk 0:03:00]} 9. c3 {[%clk 0:03:00]}  a5 {[%clk 0:02:59]} 10. e5 {[%clk 0:02:57]}  Nd7 {[%clk 0:03:00]} 11. Nf1 {[%clk 0:02:58]}  Ba6 {[%clk 0:03:00]} 12. h4 {[%clk 0:02:58]}  b4 {[%clk 0:03:00]} 13. h5 {[%clk 0:02:56]}  Re8 {[%clk 0:02:59]} 14. h6 {[%clk 0:02:54]}  g6 {[%clk 0:02:59]} 15. N1h2 {[%clk 0:02:54]}  a4 {[%clk 0:02:57]} 16. a3 {[%clk 0:02:51]}  bxc3 {[%clk 0:02:57]} 17. bxc3 {[%clk 0:02:51]}  Qa5 {[%clk 0:02:57]} 18. Qc2 {[%clk 0:02:15]}  Rab8 {[%clk 0:02:51]} 19. Ng4 {[%clk 0:02:12]}  Rb3 {[%clk 0:02:50]} 20. Bd2 {[%clk 0:02:05]}  Qb5 {[%clk 0:02:50]} 21. Bf1 {[%clk 0:02:03]}  Rb2 {[%clk 0:02:50]} 22. Qc1 {[%clk 0:01:59]}  Qb3 {[%clk 0:02:50]} 23. Bg5 {[%clk 0:01:47]}  Bf8 {[%clk 0:02:42]} 24. Qf4 {[%clk 0:01:04]}  Qxc3 {[%clk 0:02:36]} 25. Rec1 {[%clk 0:01:01]}  Rc2 {[%clk 0:02:36]} 26. Rxc2 {[%clk 0:00:55]}  Qxc2 {[%clk 0:02:36]} 27. Rc1 {[%clk 0:00:32]}  Qb2 {[%clk 0:02:31]} 28. Nf6+ {[%clk 0:00:20]}  Nxf6 {[%clk 0:02:30]} 29. Bxf6 {[%clk 0:00:21]}  Qxa3 {[%clk 0:02:24]} 30. Rd1 {[%clk 0:00:16]}  Qb3 {[%clk 0:02:20]} 31. Rd2 {[%clk 0:00:10]}  Qb4 {[%clk 0:02:20]} 32. Ra2 {[%clk 0:00:06]}  Qxf4 {[%clk 0:02:15]} 33. gxf4 {[%clk 0:00:07]}  Bb5 {[%clk 0:02:16]} 34. Rb2 {[%clk 0:00:03]}  Nb4 {[%clk 0:02:15]} 35. d4 {[%clk 0:00:04]}  a3 {[%clk 0:02:13]} 36. Rb3 {[%clk 0:00:03]}  Bxf1 {[%clk 0:02:12]} 37. Kxf1 {[%clk 0:00:02]}  Ra8 {[%clk 0:02:09]} 38. dxc5 {[%clk 0:00:01]} 0-1


[Site "https://www.chess.com"]

[Event "Titled Tuesday Blitz July 4 Early 2023"]
[White "Czopor, Maciej"]
[Black "Vaibhav Jayant Raut"]
[WhiteFideId "21805431"]
[BlackFideId "5089034"]
[WhiteElo "2703"]
[BlackElo "2639"]
[Result "1-0"]
[Round "7"]
[TimeControl "180+2"]
[Date "2023.07.04"]
[WhiteClock "0:01:15"]
[BlackClock "0:01:04"]
[Board "53"]

1. c4 {[%clk 0:02:59]}  c5 {[%clk 0:02:59]} 2. Nc3 {[%clk 0:02:59]}  Nc6 {[%clk 0:02:59]} 3. Nf3 {[%clk 0:02:58]}  e5 {[%clk 0:02:57]} 4. e3 {[%clk 0:02:50]}  Nf6 {[%clk 0:02:53]} 5. Nd5 {[%clk 0:02:45]}  d6 {[%clk 0:02:51]} 6. d3 {[%clk 0:02:40]}  Nxd5 {[%clk 0:02:46]} 7. cxd5 {[%clk 0:02:41]}  Ne7 {[%clk 0:02:47]} 8. e4 {[%clk 0:02:39]}  g6 {[%clk 0:02:47]} 9. Be2 {[%clk 0:02:36]}  Bg7 {[%clk 0:02:47]} 10. O-O {[%clk 0:02:37]}  O-O {[%clk 0:02:47]} 11. a4 {[%clk 0:02:38]}  b6 {[%clk 0:02:46]} 12. Nd2 {[%clk 0:02:38]}  a6 {[%clk 0:02:45]} 13. Nc4 {[%clk 0:02:36]}  Rb8 {[%clk 0:02:44]} 14. Bd2 {[%clk 0:02:35]}  f5 {[%clk 0:02:42]} 15. Bc3 {[%clk 0:02:30]}  f4 {[%clk 0:02:31]} 16. Bg4 {[%clk 0:02:27]}  a5 {[%clk 0:02:26]} 17. h3 {[%clk 0:02:12]}  h5 {[%clk 0:02:22]} 18. Bxc8 {[%clk 0:02:06]}  Nxc8 {[%clk 0:02:23]} 19. g4 {[%clk 0:01:51]}  Qh4 {[%clk 0:02:09]} 20. Qf3 {[%clk 0:01:47]}  Rd8 {[%clk 0:01:51]} 21. Ra3 {[%clk 0:01:45]}  Ne7 {[%clk 0:01:51]} 22. Rb3 {[%clk 0:01:45]}  Nc8 {[%clk 0:01:50]} 23. Bxa5 {[%clk 0:01:45]}  Ra8 {[%clk 0:01:47]} 24. Bxb6 {[%clk 0:01:44]}  Nxb6 {[%clk 0:01:45]} 25. Rxb6 {[%clk 0:01:43]}  Rxa4 {[%clk 0:01:43]} 26. Rxd6 {[%clk 0:01:43]}  Rxd6 {[%clk 0:01:43]} 27. Nxd6 {[%clk 0:01:44]}  Bf8 {[%clk 0:01:37]} 28. Nc4 {[%clk 0:01:44]}  Be7 {[%clk 0:01:36]} 29. Kg2 {[%clk 0:01:44]}  Rb4 {[%clk 0:01:34]} 30. Ra1 {[%clk 0:01:42]}  Qf6 {[%clk 0:01:31]} 31. gxh5 {[%clk 0:01:35]}  gxh5 {[%clk 0:01:15]} 32. Ra8+ {[%clk 0:01:34]}  Bf8 {[%clk 0:01:15]} 33. Qxh5 {[%clk 0:01:30]}  Qg7+ {[%clk 0:01:15]} 34. Qg4 {[%clk 0:01:30]}  Qxg4+ {[%clk 0:01:15]} 35. hxg4 {[%clk 0:01:31]}  Rb3 {[%clk 0:01:16]} 36. Nxe5 {[%clk 0:01:32]}  Rxb2 {[%clk 0:01:16]} 37. Ng6 {[%clk 0:01:31]}  Kg7 {[%clk 0:01:11]} 38. Nxf8 {[%clk 0:01:31]}  c4 {[%clk 0:01:12]} 39. dxc4 {[%clk 0:01:31]}  Kf6 {[%clk 0:01:13]} 40. Ne6 {[%clk 0:01:30]}  Ke5 {[%clk 0:01:12]} 41. Rf8 {[%clk 0:01:31]}  Kxe4 {[%clk 0:01:11]} 42. Rxf4+ {[%clk 0:01:31]}  Ke5 {[%clk 0:01:12]} 43. Rf5+ {[%clk 0:01:31]}  Ke4 {[%clk 0:01:12]} 44. d6 {[%clk 0:01:29]}  Rd2 {[%clk 0:01:07]} 45. Rd5 {[%clk 0:01:30]}  Rxf2+ {[%clk 0:01:05]} 46. Kg3 {[%clk 0:01:24]}  Rf3+ {[%clk 0:01:03]} 47. Kh4 {[%clk 0:01:24]}  Rf7 {[%clk 0:01:03]} 48. d7 {[%clk 0:01:21]}  Rh7+ {[%clk 0:01:02]} 49. Kg5 {[%clk 0:01:20]}  Rxd7 {[%clk 0:01:01]} 50. Rxd7 {[%clk 0:01:20]}  Kf3 {[%clk 0:01:02]} 51. c5 {[%clk 0:01:20]}  Kg2 {[%clk 0:01:03]} 52. c6 {[%clk 0:01:20]}  Kh3 {[%clk 0:01:04]} 53. Nf4+ {[%clk 0:01:20]}  Kh2 {[%clk 0:01:03]} 54. Rd3 {[%clk 0:01:17]}  Kg1 {[%clk 0:01:03]} 55. Rd2 {[%clk 0:01:17]}  Kf1 {[%clk 0:01:03]} 56. Nd3 {[%clk 0:01:16]}  Kg1 {[%clk 0:01:02]} 57. Rf2 {[%clk 0:01:16]}  Kh1 {[%clk 0:01:02]} 58. Kh4 {[%clk 0:01:15]}  Kg1 {[%clk 0:01:03]} 59. Kg3 {[%clk 0:01:15]}  Kh1 {[%clk 0:01:04]} 60. Rf1# {[%clk 0:01:15]} 1-0


[Site "https://www.chess.com"]

[Event "Titled Tuesday Blitz July 4 Early 2023"]
[White "Chor, Kevin"]
[Black "Papasimakopoulos, Alexandros"]
[WhiteFideId "2090740"]
[BlackFideId "4244125"]
[WhiteElo "2477"]
[BlackElo "2697"]
[Result "1-0"]
[Round "7"]
[TimeControl "180+2"]
[Date "2023.07.04"]
[WhiteClock "0:00:12"]
[BlackClock "0:00:19"]
[Board "54"]

1. e4 {[%clk 0:03:00]}  e6 {[%clk 0:02:50]} 2. d4 {[%clk 0:02:57]}  d5 {[%clk 0:02:50]} 3. Nd2 {[%clk 0:02:52]}  Nf6 {[%clk 0:02:50]} 4. e5 {[%clk 0:02:47]}  Nfd7 {[%clk 0:02:51]} 5. Bd3 {[%clk 0:02:48]}  c5 {[%clk 0:02:51]} 6. c3 {[%clk 0:02:48]}  b5 {[%clk 0:02:51]} 7. Ne2 {[%clk 0:02:36]}  b4 {[%clk 0:02:51]} 8. O-O {[%clk 0:02:33]}  bxc3 {[%clk 0:02:50]} 9. bxc3 {[%clk 0:02:34]}  Ba6 {[%clk 0:02:50]} 10. Bxa6 {[%clk 0:02:12]}  Nxa6 {[%clk 0:02:51]} 11. f4 {[%clk 0:02:12]}  g6 {[%clk 0:02:49]} 12. Nf3 {[%clk 0:02:10]}  cxd4 {[%clk 0:02:43]} 13. cxd4 {[%clk 0:02:06]}  Be7 {[%clk 0:02:42]} 14. Qa4 {[%clk 0:02:02]}  Qc8 {[%clk 0:02:33]} 15. Ba3 {[%clk 0:01:58]}  Qc4 {[%clk 0:02:29]} 16. Qxc4 {[%clk 0:01:44]}  dxc4 {[%clk 0:02:29]} 17. Bxe7 {[%clk 0:01:45]}  Kxe7 {[%clk 0:02:29]} 18. Nc3 {[%clk 0:01:33]}  Rab8 {[%clk 0:02:18]} 19. d5 {[%clk 0:01:24]}  exd5 {[%clk 0:02:10]} 20. Nxd5+ {[%clk 0:01:24]}  Kf8 {[%clk 0:02:10]} 21. Ng5 {[%clk 0:01:13]}  h6 {[%clk 0:01:45]} 22. Ne4 {[%clk 0:00:55]}  Nac5 {[%clk 0:01:37]} 23. Nd6 {[%clk 0:00:50]}  Kg7 {[%clk 0:01:24]} 24. Nxc4 {[%clk 0:00:42]}  Rhc8 {[%clk 0:01:23]} 25. Nd6 {[%clk 0:00:38]}  Rc6 {[%clk 0:01:21]} 26. Rab1 {[%clk 0:00:35]}  Rxb1 {[%clk 0:01:17]} 27. Rxb1 {[%clk 0:00:36]}  Ra6 {[%clk 0:01:16]} 28. Rb2 {[%clk 0:00:27]}  Ra3 {[%clk 0:01:11]} 29. g3 {[%clk 0:00:23]}  g5 {[%clk 0:01:09]} 30. Nf5+ {[%clk 0:00:17]}  Kh7 {[%clk 0:01:07]} 31. Re2 {[%clk 0:00:13]}  Rd3 {[%clk 0:01:05]} 32. Nf6+ {[%clk 0:00:11]}  Nxf6 {[%clk 0:01:05]} 33. exf6 {[%clk 0:00:12]}  gxf4 {[%clk 0:01:02]} 34. gxf4 {[%clk 0:00:11]}  Kg6 {[%clk 0:01:01]} 35. Ng3 {[%clk 0:00:08]}  Kxf6 {[%clk 0:00:56]} 36. Kg2 {[%clk 0:00:08]}  Rd4 {[%clk 0:00:54]} 37. Kf3 {[%clk 0:00:06]}  Ra4 {[%clk 0:00:55]} 38. Rb2 {[%clk 0:00:04]}  Rxf4+ {[%clk 0:00:46]} 39. Ke3 {[%clk 0:00:04]}  Ra4 {[%clk 0:00:42]} 40. Rc2 {[%clk 0:00:04]}  Ra3+ {[%clk 0:00:41]} 41. Kd4 {[%clk 0:00:02]}  Ne6+ {[%clk 0:00:41]} 42. Kc4 {[%clk 0:00:03]}  Kg5 {[%clk 0:00:36]} 43. Ne4+ {[%clk 0:00:03]}  Kg4 {[%clk 0:00:32]} 44. Nd6 {[%clk 0:00:03]}  Ng5 {[%clk 0:00:30]} 45. Kd5 {[%clk 0:00:03]}  f5 {[%clk 0:00:24]} 46. Kc5 {[%clk 0:00:03]}  f4 {[%clk 0:00:23]} 47. Nc4 {[%clk 0:00:03]}  Rd3 {[%clk 0:00:21]} 48. Ne5+ {[%clk 0:00:03]}  Kh3 {[%clk 0:00:20]} 49. Nxd3 {[%clk 0:00:04]}  f3 {[%clk 0:00:20]} 50. Kd4 {[%clk 0:00:04]}  Kg4 {[%clk 0:00:15]} 51. Ke3 {[%clk 0:00:04]}  Kh3 {[%clk 0:00:15]} 52. Ne5 {[%clk 0:00:05]}  f2 {[%clk 0:00:12]} 53. Rxf2 {[%clk 0:00:05]}  Ne6 {[%clk 0:00:13]} 54. Ke4 {[%clk 0:00:05]}  Nc5+ {[%clk 0:00:12]} 55. Kd5 {[%clk 0:00:05]}  Na4 {[%clk 0:00:10]} 56. Nf7 {[%clk 0:00:05]}  Nc3+ {[%clk 0:00:10]} 57. Ke6 {[%clk 0:00:06]}  Ne4 {[%clk 0:00:10]} 58. Re2 {[%clk 0:00:05]}  Nc3 {[%clk 0:00:10]} 59. Re3+ {[%clk 0:00:05]}  Kxh2 {[%clk 0:00:10]} 60. Rxc3 {[%clk 0:00:06]}  h5 {[%clk 0:00:11]} 61. Kf5 {[%clk 0:00:06]}  h4 {[%clk 0:00:12]} 62. Kg4 {[%clk 0:00:06]}  Kg2 {[%clk 0:00:12]} 63. Kxh4 {[%clk 0:00:07]}  Kf2 {[%clk 0:00:13]} 64. Rc7 {[%clk 0:00:07]}  Ke3 {[%clk 0:00:14]} 65. Rxa7 {[%clk 0:00:07]}  Kd4 {[%clk 0:00:14]} 66. Rc7 {[%clk 0:00:08]}  Kd5 {[%clk 0:00:15]} 67. a4 {[%clk 0:00:09]}  Ke6 {[%clk 0:00:16]} 68. a5 {[%clk 0:00:09]}  Kf5 {[%clk 0:00:17]} 69. a6 {[%clk 0:00:10]}  Kf6 {[%clk 0:00:18]} 70. a7 {[%clk 0:00:11]}  Kg7 {[%clk 0:00:18]} 71. a8=Q {[%clk 0:00:11]}  Kh7 {[%clk 0:00:19]} 72. Qc6 {[%clk 0:00:11]}  Kg8 {[%clk 0:00:18]} 73. Ne5 {[%clk 0:00:12]}  Kf8 {[%clk 0:00:18]} 74. Qf6+ {[%clk 0:00:12]}  Ke8 {[%clk 0:00:19]} 75. Qe7# {[%clk 0:00:12]} 1-0


[Site "https://www.chess.com"]

[Event "Titled Tuesday Blitz July 4 Early 2023"]
[White "Glavina, Pablo"]
[Black "Velikanov, Alexander"]
[WhiteFideId "100234"]
[BlackFideId "2039290"]
[WhiteElo "2398"]
[BlackElo "2674"]
[Result "0-1"]
[Round "7"]
[TimeControl "180+2"]
[Date "2023.07.04"]
[WhiteClock "0:00:00"]
[BlackClock "0:00:45"]
[Board "59"]

1. c4 {[%clk 0:02:59]}  e5 {[%clk 0:02:57]} 2. Nc3 {[%clk 0:02:59]}  Nc6 {[%clk 0:02:57]} 3. Nf3 {[%clk 0:02:59]}  f5 {[%clk 0:02:55]} 4. g3 {[%clk 0:02:58]}  Bb4 {[%clk 0:02:52]} 5. Bg2 {[%clk 0:02:56]}  Bxc3 {[%clk 0:02:50]} 6. bxc3 {[%clk 0:02:55]}  Nf6 {[%clk 0:02:50]} 7. O-O {[%clk 0:02:55]}  d6 {[%clk 0:02:50]} 8. Ba3 {[%clk 0:02:52]}  O-O {[%clk 0:02:46]} 9. c5 {[%clk 0:02:52]}  d5 {[%clk 0:02:46]} 10. Rb1 {[%clk 0:02:35]}  e4 {[%clk 0:02:22]} 11. Nd4 {[%clk 0:02:33]}  Ne5 {[%clk 0:02:18]} 12. c6 {[%clk 0:02:29]}  bxc6 {[%clk 0:02:00]} 13. Bxf8 {[%clk 0:02:18]}  Qxf8 {[%clk 0:02:01]} 14. Qa4 {[%clk 0:02:08]}  c5 {[%clk 0:01:56]} 15. Nb3 {[%clk 0:02:04]}  Be6 {[%clk 0:01:41]} 16. Qa5 {[%clk 0:02:01]}  Ned7 {[%clk 0:01:39]} 17. Qxc7 {[%clk 0:01:57]}  a5 {[%clk 0:01:39]} 18. Nxa5 {[%clk 0:01:46]}  Ne8 {[%clk 0:01:39]} 19. Qc6 {[%clk 0:01:45]}  Rxa5 {[%clk 0:01:36]} 20. Qxe6+ {[%clk 0:01:45]}  Qf7 {[%clk 0:01:37]} 21. Qxf7+ {[%clk 0:01:30]}  Kxf7 {[%clk 0:01:38]} 22. Rb2 {[%clk 0:01:28]}  Nd6 {[%clk 0:01:28]} 23. d3 {[%clk 0:01:29]}  c4 {[%clk 0:01:25]} 24. Rd1 {[%clk 0:01:24]}  Ke6 {[%clk 0:01:23]} 25. f3 {[%clk 0:01:18]}  Nc5 {[%clk 0:01:17]} 26. fxe4 {[%clk 0:01:14]}  fxe4 {[%clk 0:01:10]} 27. Bh3+ {[%clk 0:00:42]}  Ke7 {[%clk 0:01:09]} 28. dxc4 {[%clk 0:00:40]}  Nxc4 {[%clk 0:01:08]} 29. Rb8 {[%clk 0:00:35]}  Ne3 {[%clk 0:01:07]} 30. Ra1 {[%clk 0:00:28]}  Na4 {[%clk 0:01:01]} 31. Rb7+ {[%clk 0:00:23]}  Kf6 {[%clk 0:00:57]} 32. Kf2 {[%clk 0:00:22]}  Nc4 {[%clk 0:00:58]} 33. Rf1 {[%clk 0:00:20]}  Nxc3 {[%clk 0:00:52]} 34. Ke1+ {[%clk 0:00:15]}  Ke5 {[%clk 0:00:53]} 35. Rff7 {[%clk 0:00:07]}  Rxa2 {[%clk 0:00:51]} 36. Bg4 {[%clk 0:00:02]}  Ne3 {[%clk 0:00:47]} 37. Bh5 {[%clk 0:00:01]}  g6 {[%clk 0:00:47]} 38. Rfe7+ {[%clk 0:00:01]}  Kd4 {[%clk 0:00:47]} 39. Rb4+ {[%clk 0:00:01]}  Kc5 {[%clk 0:00:47]} 40. Rb3 {[%clk 0:00:00]}  Kc4 {[%clk 0:00:45]} 0-1


[Site "https://www.chess.com"]

[Event "Titled Tuesday Blitz July 4 Early 2023"]
[White "Zhigalko, Sergei"]
[Black "Golubev, Mikhail"]
[WhiteFideId "13502956"]
[BlackFideId "14100983"]
[WhiteElo "2885"]
[BlackElo "2565"]
[Result "1-0"]
[Round "7"]
[TimeControl "180+2"]
[Date "2023.07.04"]
[WhiteClock "0:01:22"]
[BlackClock "0:00:00"]
[Board "65"]

1. e4 {[%clk 0:03:00]}  c5 {[%clk 0:02:59]} 2. Nf3 {[%clk 0:03:00]}  d6 {[%clk 0:02:59]} 3. d4 {[%clk 0:03:00]}  cxd4 {[%clk 0:02:58]} 4. Qxd4 {[%clk 0:03:01]}  Nc6 {[%clk 0:02:57]} 5. Bb5 {[%clk 0:03:01]}  Bd7 {[%clk 0:02:56]} 6. Bxc6 {[%clk 0:03:01]}  Bxc6 {[%clk 0:02:57]} 7. Nc3 {[%clk 0:03:00]}  Nf6 {[%clk 0:02:55]} 8. Bg5 {[%clk 0:03:00]}  e6 {[%clk 0:02:54]} 9. O-O-O {[%clk 0:03:00]}  Be7 {[%clk 0:02:54]} 10. Rhe1 {[%clk 0:03:00]}  O-O {[%clk 0:02:48]} 11. Kb1 {[%clk 0:03:00]}  Qc7 {[%clk 0:02:38]} 12. Qd2 {[%clk 0:03:00]}  b5 {[%clk 0:02:28]} 13. Nd4 {[%clk 0:03:00]}  a6 {[%clk 0:02:20]} 14. f3 {[%clk 0:03:00]}  Rfc8 {[%clk 0:02:18]} 15. g4 {[%clk 0:03:00]}  Be8 {[%clk 0:02:16]} 16. Nce2 {[%clk 0:03:00]}  a5 {[%clk 0:02:10]} 17. Ng3 {[%clk 0:03:00]}  b4 {[%clk 0:02:05]} 18. Rg1 {[%clk 0:02:59]}  Rab8 {[%clk 0:01:25]} 19. Nh5 {[%clk 0:02:59]}  Qd8 {[%clk 0:01:25]} 20. h4 {[%clk 0:02:37]}  Rc5 {[%clk 0:00:36]} 21. Nb3 {[%clk 0:02:27]}  Rcb5 {[%clk 0:00:33]} 22. Nd4 {[%clk 0:02:27]}  Rc5 {[%clk 0:00:32]} 23. Nxg7 {[%clk 0:01:52]}  Kxg7 {[%clk 0:00:32]} 24. Nf5+ {[%clk 0:01:52]}  exf5 {[%clk 0:00:21]} 25. gxf5 {[%clk 0:01:52]}  Kh8 {[%clk 0:00:17]} 26. Qg2 {[%clk 0:01:28]}  Ba4 {[%clk 0:00:06]} 27. Bh6 {[%clk 0:01:27]}  Bxc2+ {[%clk 0:00:05]} 28. Ka1 {[%clk 0:01:27]}  Nh5 {[%clk 0:00:04]} 29. Bg7+ {[%clk 0:01:22]}  Kg8 {[%clk 0:00:00]} 30. Bf6+ {[%clk 0:01:22]} 1-0


[Site "https://www.chess.com"]